Cogmind - Beta 16 @@@ ROGUE MODE // 2025.11.21 @ 07:22:40 Player: Sharkenning Result: Destroyed by as-01191 with Assembled Rifle Performance ------------- Evolutions (1) 500 Regions Visited (5) 1000 Robots Destroyed (60) 300 Value Destroyed (1423) 1423 Prototype IDs (28) 560 Alien Tech Used (0) 0 Bonus (289) 289 TOTAL SCORE: 4072 Bonus ------- High Alert Combat Kills 27 Aligned with FarCom 300 Friendly Fire -38 Cogmind --------- Core Integrity 0/400 Matter 286/300 Energy 99/100 System Corruption 2% Temperature Cool (0) Movement Rolling (85) Ox1 Location -9/Exiles Parts ------- > --- POWER (1) -------- (None) > --- PROPULSION (2) --- Wheel > --- UTILITY (4) ------ Large Storage Unit Visual Processing Unit > --- WEAPON (2) ------- (None) > --- INVENTORY (15) --- Light Fission Core Cooling System High-capacity Matter Pod (200) Sensor Array Signal Interpreter Advanced Terrain Scan Processor Splice Drone Bay (6/6) Supersonic Drone Bay (1/1) Guided Plasma Cannon Assault Cannon Remote Datajack Mining Laser Proton Bomb Trap Peak State ------------ > --- POWER ------------ Light Angular Momentum Engine > --- PROPULSION ------- Improved Titanium Leg Improved Titanium Leg > --- UTILITY ---------- Large Storage Unit Visual Processing Unit Signal Interpreter Seismic Detector > --- WEAPON ----------- Improved EM Pulse Cannon Guided Plasma Cannon > --- INVENTORY -------- Light Fission Core Wheel Armored Wheel Cooling System High-capacity Matter Pod Sensor Array Signal Interpreter Advanced Terrain Scan Processor Splice Drone Bay Supersonic Drone Bay Shotgun Assault Cannon Remote Datajack Mining Laser Proton Bomb Trap [Rating: 34] Favorites ----------- Power Light Ion Engine Engine Light Ion Engine Propulsion Wheel Leg Improved Titanium Leg Wheel Wheel Utility Large Storage Unit Device Seismic Detector Storage Large Storage Unit Processor Signal Interpreter Protection Light Armor Plating Weapon Medium Laser Energy Gun Medium Laser Energy Cannon Improved EM Pulse Cannon Ballistic Gun Light Assault Rifle Ballistic Cannon Assault Cannon Launcher Grenade Launcher Special Weapon Mining Laser Build | -11 -10 -10 -9 -9 -9 ------- Run | Yrd Mat Min Mat Min Exi Slots Evolved 2 | . . . 2 . . Power . | . . . . . . Propulsion . | . . . . . . Utility 2 | . . . 2 . . Weapon . | . . . . . . Parts Attached 51 | 7 10 5 22 5 2 Power 8 | 1 1 1 4 1 . Engine 8 | 1 1 1 4 1 . Core . | . . . . . . Reactor . | . . . . . . Propulsion 9 | 2 1 1 3 2 . Treads . | . . . . . . Leg 2 | . . . . 2 . Wheel 7 | 2 1 1 3 . . Hover . | . . . . . . Flight . | . . . . . . Utility 16 | 2 4 1 9 . . Device 5 | 1 . . 4 . . Storage 5 | 1 2 . 2 . . Processor 2 | . . 1 1 . . Hackware . | . . . . . . Protection 4 | . 2 . 2 . . Artifact . | . . . . . . Weapon 18 | 2 4 2 6 2 2 Energy Gun 4 | 1 1 . 2 . . Energy Cannon 2 | . . . . 1 1 Ballistic Gun 5 | 1 1 . 2 . 1 Ballistic Cannon 2 | . . . 1 1 . Launcher 3 | . 1 1 1 . . Special Weapon 2 | . 1 1 . . . Impact Weapon . | . . . . . . Slashing Weapon . | . . . . . . Piercing Weapon . | . . . . . . Special Melee Weapon . | . . . . . . Unidentified Prototypes 3 | . . . 3 . . Parts Lost 18 | . 2 2 4 2 8 Power 3 | . . 1 1 . 1 Propulsion 6 | . 1 1 1 . 3 Utility 4 | . . . 1 1 2 Weapon 5 | . 1 . 1 1 2 Highest Loss Streak 8 | . 2 1 2 2 8 To Critical Strikes . | . . . . . . Average Backups 12 | 1 9 14 13 13 13 Power 1 | 1 . 1 . . 1 Propulsion 1 | . . . 1 1 1 Utility 5 | . 4 7 4 6 6 Weapon 4 | . 4 5 6 3 3 Tool/Special . | . . . . . . Unused Backups 11 | 1 1 2 . . 7 Power 3 | 1 . . . . 2 Propulsion . | . . . . . . Utility 6 | . . 2 . . 4 Weapon 1 | . 1 . . . . Tool/Special 1 | . . . . . 1 Average Slot Usage (%) 98 | . 100 98 98 94 98 Engine 11 | . 14 13 10 11 10 Leg 7 | . . . . 14 21 Wheel 16 | . 28 27 22 7 . Device 9 | . 10 1 16 5 10 Storage 12 | . 14 14 11 11 11 Processor 14 | . . 12 14 22 21 Protection 1 | . 3 . 1 . . Energy Gun 7 | . 15 18 3 . . Energy Cannon 3 | . . . . 5 11 Ballistic Gun 7 | . 10 8 13 5 . Ballistic Cannon 4 | . . . 1 8 10 Special Weapon 1 | . 1 . 2 3 . Peak Build Rating 34 | 7 8 12 22 28 34 Average Rating 17 | 4 7 8 15 24 27 On Entrance 11 | . 7 8 9 16 28 Avg Prop Armor Cover (%) 6 | . . . . 6 . Naked Turns . | . . . . . . Heaviest Build 47 | 13 30 31 38 42 47 Greatest Support 40 | 20 26 26 26 40 40 Greatest Overweight (x) 2 | . 1 1 2 2 2 Average Overweight (x) . | . . . 1 . . Largest Inventory Capacity 15 | 8 15 15 15 15 15 Average Capacity 14 | 7 12 15 15 15 15 Most Carried 15 | 5 14 15 15 15 15 Average Carried 13 | 2 9 14 14 14 14 Final Capacity 15 | 8 15 15 15 15 15 Final Carried 15 | 2 14 15 15 13 13 Class Distribution -------------------- 97% | Mutant Dominant Class ---------------- Mutant | -10/Materials Mutant | -10/Mines Mutant | -9/Materials Mutant | -9/Mines Mutant | -9/Exiles Resources | -11 -10 -10 -9 -9 -9 ----------- Run | Yrd Mat Min Mat Min Exi Matter Collected 1912 | 259 513 137 717 250 36 Remotely . | . . . . . . Salvage Created 1577 | 29 284 134 866 215 49 Parts 114 | 5 28 13 63 5 . Haulers Intercepted 3 | . 1 . 2 . . Recyclers Shooed 6 | . 3 2 1 . . Parts Field Recycled . | . . . . . . Retrieved Matter . | . . . . . . Parts Self-Destructed . | . . . . . . Prevented . | . . . . . . Parts Restored . | . . . . . . Kills | -11 -10 -10 -9 -9 -9 ------- Run | Yrd Mat Min Mat Min Exi Combat Hostiles Destroyed 52 | . 13 5 22 9 3 Guns 20 | . 5 2 10 2 1 Cannons 13 | . . . 5 6 2 AOE 19 | . 8 3 7 1 . Classes Destroyed 13 | 1 5 1 4 2 . Worker 1 | . . 1 . . . Builder 1 | . . . 1 . . Tunneler 1 | 1 . . . . . Hauler 3 | . 1 . 2 . . Recycler 1 | . . . 1 . . Operator 1 | . 1 . . . . Watcher 7 | . 3 . 4 . . Swarmer 19 | . 9 3 7 . . Grunt 17 | . 4 2 8 3 . Brawler 2 | . . . 2 . . Sentry 5 | . . . 5 . . Demolisher 2 | . . . . 2 . Assembled 7 | . . . . 4 3 Best Kill Streak 4 | 1 4 3 4 4 3 Combat Bots Only 4 | . 3 3 4 4 3 Max Kills in Single Turn 3 | 1 3 2 3 1 1 Gunslinging . | . . . . . . Exploded 3 | . 3 2 3 1 . Melee . | . . . . . . Uniques/NPCs Destroyed . | . . . . . . Combat | -11 -10 -10 -9 -9 -9 -------- Run | Yrd Mat Min Mat Min Exi Hostile Shots Fired 250 | . 53 18 63 38 78 Missed 71 | . 12 3 22 11 23 Hits 179 | . 41 15 41 27 55 Melee 10 | . . . . 7 3 Projectile 169 | . 41 15 41 20 52 AOE 11 | . . . . 11 . Critical Strikes 3 | . . . 1 . 2 Actively Blocked 1 | . . . 1 . . Part Disruptions 1 | . . . . 1 . Damage Taken 2602 | . 401 159 473 778 791 Core 533 | . 65 64 89 91 224 Absorbed by Shields . | . . . . . . Redirected to Shielding 7 | . 3 . 4 . . Core Remaining (%) 74 | 100 . 48 . . . Volleys Fired 200 | 2 66 21 80 21 10 Largest 2 | 2 2 2 2 2 1 Hottest 150 | 70 100 150 123 106 69 Shots Fired 345 | 4 116 36 137 42 10 Gun 257 | 4 108 32 95 13 5 Cannon 44 | . . . 10 29 5 Launcher 12 | . 4 3 5 . . Special 32 | . 4 1 27 . . Kinetic 184 | 2 49 14 87 27 5 Thermal 122 | 2 63 19 38 . . Explosive 12 | . 4 3 5 . . Electromagnetic 27 | . . . 7 15 5 Robot Hit Streak 20 | 2 6 15 20 3 3 Robot Miss Streak 5 | 1 5 5 4 5 3 Penetration Max . | . . . . . . Secondary Targets . | . . . . . . Shots Hit Robots 193 | 2 55 27 86 17 6 Core Hits 100 | 1 27 12 44 11 5 Critical Kills 1 | . 1 . . . . Critical Parts Destroyed 1 | . 1 . . . . Critical Strikes 11 | . 4 2 4 1 . Burn 7 | . 2 2 3 . . Destroy 2 | . 2 . . . . Blast 2 | . . . 1 1 . Melee Attacks . | . . . . . . Impact . | . . . . . . Slashing . | . . . . . . Piercing . | . . . . . . Sneak Attacks . | . . . . . . Combat Hostiles . | . . . . . . Follow-up Attacks . | . . . . . . Damage Inflicted 3950 | 27 1112 459 1748 502 102 Guns 2009 | 27 662 275 921 73 51 Cannons 614 | . . . 194 369 51 Explosions 1167 | . 450 172 485 60 . Melee . | . . . . . . Ramming . | . . . . . . Kinetic 1540 | 14 296 100 914 165 51 Thermal 944 | 13 366 187 318 60 . Explosive 1053 | . 450 172 431 . . Electromagnetic 413 | . . . 85 277 51 Impact . | . . . . . . Slashing . | . . . . . . Piercing . | . . . . . . Highest Corruption 2 | . . . 1 1 2 Average Corruption 1 | . . . 1 1 1 Corruption Purged . | . . . . . . Corruption Blocked . | . . . . . . Effects 24 | . . . 4 4 16 Message Errors 7 | . . . 1 2 4 Matter Fused 2 | . . . . 1 1 Heat Flow Errors 2 | . . . . . 2 Energy Discharges 1 | . . . 1 . . Parts Fused 1 | . . . . . 1 Data Loss (minor) 6 | . . . 1 1 4 Data Loss (major) 2 | . . . 1 . 1 Misfires 1 | . . . . . 1 Alerts 1 | . . . . . 1 Weapon Failures 1 | . . . . . 1 Overload Shots . | . . . . . . Overflow Damage 96 | . 46 . 50 . . Projectiles . | . . . . . . Explosions 96 | . 46 . 50 . . Melee . | . . . . . . Knockbacks . | . . . . . . Impact . | . . . . . . Kinetic . | . . . . . . Secondary . | . . . . . . Self-Inflicted Damage 20 | . . . 20 . . Shots 2 | . . . 2 . . Rammed . | . . . . . . Targets Rammed . | . . . . . . Kicked . | . . . . . . Crushed . | . . . . . . Highest Temperature 361 | . 221 196 271 361 172 Average Temperature 62 | . 47 101 44 102 61 Received Heat Transfer 570 | . 135 48 192 135 60 Siege Activations . | . . . . . . Martial Activations . | . . . . . . Shielding Activations . | . . . . . . Robots Disrupted 1 | . . . 1 . . Combat Hostiles 1 | . . . 1 . . Robots Corrupted . | . . . . . . Combat Hostiles . | . . . . . . Parts Fried . | . . . . . . Impact Corruptions . | . . . . . . Robots Melted . | . . . . . . Combat Hostiles . | . . . . . . Parts Melted 4 | . . 1 3 . . Heat Transferred 3614 | 37 1221 746 1510 100 . Parts Sabotaged . | . . . . . . Parts Stolen . | . . . . . . Parts Stripped . | . . . . . . Power Chain Reactions 1 | . . . . 1 . Alert | -11 -10 -10 -9 -9 -9 ------- Run | Yrd Mat Min Mat Min Exi Maximum Alert Level 2 | . 1 . 2 . . Low Security (%) 78 | 100 99 100 36 100 . Level 1 17 | . . . 50 . . Level 2 4 | . . . 13 . . Level 3 . | . . . . . . Level 4 . | . . . . . . Level 5 . | . . . . . . High Security . | . . . . . . Max Security . | . . . . . . Peak Influence 454 | 5 204 96 454 100 . Initial 100 | . . 17 . 100 . Average 117 | . 97 15 238 44 . Influence Increases 1582 | 5 417 159 855 146 . Destroy 0b10 Robot/C 900 | . 260 100 440 100 . Destroy 0b10 Robot/NC 75 | 5 25 5 40 . . Destroy Leader 190 | . 48 20 102 20 . Successful Hack 39 | . 18 . 21 . . Disable Machine 90 | . 15 . 60 15 . Destroy Structure 153 | . 21 19 102 11 . Lose Combat Pursuer 135 | . 30 15 90 . . Influence Decreases 1582 | 5 372 204 596 391 14 Entered New Map 201 | . . 28 . 159 14 Time Decay 1161 | 5 352 166 416 222 . Lost Part 70 | . 20 10 30 10 . Purge Threat 150 | . . . 150 . . Squads Dispatched 3 | . 1 . 1 1 . Investigation 1 | . . . . 1 . Extermination . | . . . . . . Reinforcement 2 | . 1 . 1 . . Assault . | . . . . . . Garrison . | . . . . . . Intercept . | . . . . . . Searches Triggered . | . . . . . . Construction Impeded . | . . . . . . Haulers Reinforced . | . . . . . . Active Scanning Responses . | . . . . . . Cargo Convoy Interrupts . | . . . . . . Stealth | -11 -10 -10 -9 -9 -9 --------- Run | Yrd Mat Min Mat Min Exi Distress Signals 5 | . 2 . 3 . . Communications Jammed . | . . . . . . Distress Signals . | . . . . . . Times Spotted 89 | . 24 6 34 17 8 Peak Tracking Total 9 | . 4 3 6 8 9 Tactical Retreats 7 | . 1 1 4 1 . Traps | -11 -10 -10 -9 -9 -9 ------- Run | Yrd Mat Min Mat Min Exi Traps Triggered 2 | . . . 2 . . Indirectly . | . . . . . . Trap Hack Attempts . | . . . . . . Triggered . | . . . . . . Disarmed . | . . . . . . Reprogrammed . | . . . . . . Reused . | . . . . . . Traps Extracted . | . . . . . . Installed . | . . . . . . Triggered . | . . . . . . Most Traps Carried 1 | . . 1 1 1 1 Machines | -11 -10 -10 -9 -9 -9 ---------- Run | Yrd Mat Min Mat Min Exi Machines Disabled 7 | . 1 . 4 1 1 Max in Single Turn 2 | . 1 . 2 1 1 Machines Repaired . | . . . . . . Machines Dismantled . | . . . . . . Machines Sabotaged . | . . . . . . Overloaded Fab Kills . | . . . . . . Hacking | -11 -10 -10 -9 -9 -9 --------- Run | Yrd Mat Min Mat Min Exi Machines Accessed 22 | . 8 1 7 1 5 Terminals 12 | . 7 . 5 . . Fabricators . | . . . . . . Repair Stations . | . . . . . . Recycling Units 1 | . 1 . . . . Scanalyzers 2 | . . . 2 . . Garrison Access . | . . . . . . Total Hacks 92 | . 21 1 19 1 50 Successful 66 | . 6 1 8 1 50 Failed 26 | . 15 . 11 . . Catastrophic 1 | . 1 . . . . Database Lockouts . | . . . . . . Manual 20 | . 8 . 11 . 1 Terminals 34 | . 19 . 15 . . Fabricators . | . . . . . . Repair Stations . | . . . . . . Recycling Units 2 | . 2 . . . . Scanalyzers 4 | . . . 4 . . Garrison Access . | . . . . . . Terminal Hacks 56 | . 1 1 3 1 50 Record 49 | . . . . . 49 Prototype ID Bank 1 | . 1 . . . . Open Door 2 | . . 1 . 1 . Branch Access Points 1 | . . . 1 . . Alert Level 1 | . . . 1 . . Unreport Threat 1 | . . . 1 . . Proto ID Catalog 1 | . . . . . 1 Fabricator Hacks . | . . . . . . Repair Station Hacks . | . . . . . . Recycling Unit Hacks 1 | . 1 . . . . Process 1 | . 1 . . . . Scanalyzer 2 | . . . 2 . . Retrieve Study 2 | . . . 2 . . Garrison Access Hacks . | . . . . . . Unauthorized Hacks 7 | . 4 . 3 . . Terminals 7 | . 4 . 3 . . Botnet 7 | . 4 . 3 . . Fabricators . | . . . . . . Repair Stations . | . . . . . . Recycling Units . | . . . . . . Scanalyzers . | . . . . . . Garrison Access . | . . . . . . Data Cores Recovered . | . . . . . . Used . | . . . . . . Hacking Detections 13 | . 8 . 5 . . Full Trace Events . | . . . . . . Feedback Events . | . . . . . . Feedback Blocked . | . . . . . . Robot Schematics Acquired . | . . . . . . Robots Built . | . . . . . . Authchips . | . . . . . . Time . | . . . . . . Total Robot Build Rating . | . . . . . . Part Schematics Acquired . | . . . . . . Parts Built . | . . . . . . Authchips . | . . . . . . Time . | . . . . . . Total Part Build Rating . | . . . . . . Part Studies Acquired 2 | . . . 2 . . Parts Repaired . | . . . . . . Time . | . . . . . . Parts Recycled . | . . . . . . Recycled Matter 143 | . 143 . . . . Retrieved Matter . | . . . . . . Retrieved Components . | . . . . . . Parts Scanalyzed . | . . . . . . Part Schematics Acquired . | . . . . . . Parts Damaged . | . . . . . . Bothacking | -11 -10 -10 -9 -9 -9 ------------ Run | Yrd Mat Min Mat Min Exi Used RIF Installer . | . . . . . . Robots Hacked . | . . . . . . Non-combat . | . . . . . . Combat . | . . . . . . Robot Hacks Applied . | . . . . . . Relay Couplers Released . | . . . . . . Fabnet Peak Effective % . | . . . . . . Robots Rewired . | . . . . . . Allies Hacked . | . . . . . . Hacks Repelled . | . . . . . . Allies | -11 -10 -10 -9 -9 -9 -------- Run | Yrd Mat Min Mat Min Exi Total Allies 3 | . . 3 . . . Largest Group 3 | . . 3 . . . Highest-Rated Group 40 | . . 40 . . . Highest-Rated Ally 16 | . . 16 . . . Total Orders 8 | . . . 8 . . FOLLOW 1 | . . . 1 . . EXPLORE 4 | . . . 4 . . RETURN 3 | . . . 3 . . Ally Attacks 1 | . . . 1 . . Total Damage 4 | . . . 4 . . Kills . | . . . . . . Allies Corrupted . | . . . . . . Allies Melted . | . . . . . . Intel | -11 -10 -10 -9 -9 -9 ------- Run | Yrd Mat Min Mat Min Exi Active Infowar (turns) 3780 | 9 668 68 1162 478 1395 Optics 2266 | . . . 393 478 1395 Sensors 824 | . . . 684 140 . Seismic 2989 | 9 668 68 772 98 1374 Robot Analysis Total . | . . . . . . Derelict Logs Recovered 4 | . . 3 . 1 . Drone Launches 4 | . . . 4 . . Drone Recoveries 4 | . . . 4 . . Exploration | -11 -10 -10 -9 -9 -9 ------------- Run | Yrd Mat Min Mat Min Exi Turns Passed 4803 | 53 936 779 1162 478 1395 Spaces Moved 3051 | 39 714 717 615 274 692 Core 5 | 5 . . . . . Treads . | . . . . . . Legs 834 | . . . . 155 679 Wheels 2212 | 34 714 717 615 119 13 Hover . | . . . . . . Flight . | . . . . . . Fastest Speed 50 | 50 80 90 85 90 85 Average Speed 118 | 76 88 95 89 134 197 Slowest Speed 270 | 80 105 115 110 270 200 Overloaded Moves . | . . . . . . Propulsion Burnouts . | . . . . . . Robots Hopped . | . . . . . . Potential Cave-ins . | . . . . . . Cave-ins Triggered . | . . . . . . Exploration Rate (%) 67 | 4 90 94 63 59 95 Regions Visited 5 Branch Regions 3 Pre-discovered Areas 2 | . . 1 . . 1 Known Exits Taken 3 | . . 1 1 1 . Unknown Exits Taken 2 | 1 1 . . . . Scrap Searched 2 | . . 2 . . . Spaces Dug 13 | . 3 . 10 . . Terrain Destroyed 179 | . 23 22 121 13 . Melee . | . . . . . . Projectile 22 | . 3 . 11 8 . AOE 157 | . 20 22 110 5 . Terrain Rammed . | . . . . . . Walls Destroyed . | . . . . . . Machines Disabled . | . . . . . . Actions | -11 -10 -10 -9 -9 -9 --------- Run | Yrd Mat Min Mat Min Exi Total 3827 | 58 891 778 1046 340 714 Wait 393 | . 70 24 275 24 . Move 3046 | 38 713 716 614 273 692 Hop . | . . . . . . Pick Up 59 | 10 18 5 17 5 4 Fast Attach 6 | . . 1 3 1 1 Attach 21 | 7 2 1 6 2 3 Detach 1 | . . . . . 1 Swap 70 | . 17 7 38 8 . Drop 31 | 1 5 3 13 6 3 Fire 200 | 2 66 21 80 21 10 Melee . | . . . . . . Ram . | . . . . . . Kick . | . . . . . . Crush . | . . . . . . Escape Stasis . | . . . . . . Rewire . | . . . . . . Trap . | . . . . . . Miscellaneous . | . . . . . . Route ------- -11/Scrapyard -10/Materials (discovered 5 exits: *Mat x3 / *Min x2) -10/Mines -9/Materials (discovered 5 exits: *Mat x3 / *Min x2) -9/Mines -9/Exiles (discovered 2 exits: *Min x2) History --------- Turn | Location | Event 24 | -11/Scrapyard | Discovered new exit (range 16) 54 | -11/Scrapyard | Entered Materials 55 | -10/Materials | Met a group of wandering Federalists 164 | -10/Materials | Discovered new exit (range 14) 312 | -10/Materials | Build established: Mutant 326 | -10/Materials | Discovered new exit (range 6) 392 | -10/Materials | Discovered new exit (range 8) 736 | -10/Materials | Discovered new exit (range 16) 972 | -10/Materials | Discovered new exit (range 16) 990 | -10/Materials | Entered Mines 1025 | -10/Mines | YI-UF0 nonchalantly dropped a Grenade Launcher on the ground 1063 | -10/Mines | Learned 8 Materials zone layouts 1066 | -10/Mines | Discovered new exit (range 10) 1070 | -10/Mines | Learned Materials terminal intel 1077 | -10/Mines | Identified exit to Materials 1145 | -10/Mines | A weapon hastily lodged in a ceiling crevice suddenly fell to the ground 1236 | -10/Mines | Found a hidden stash of uninstalled traps 1413 | -10/Mines | Core integrity fell below 50% 1451 | -10/Mines | Learned location of Zion (-7) 1470 | -10/Mines | Assisted by bots powering up and referring to "LRC-V3" 1581 | -10/Mines | Found the Drone Emporium 1586 | -10/Mines | Found Prototype Device 1769 | -10/Mines | Entered Materials 1769 | -9/Materials | Evolved 2 slots: Utility x2 1770 | -9/Materials | Identified exit to Materials 1770 | -9/Materials | Identified exit to Mines 1771 | -9/Materials | Loaded intel: 11 terminal locations 1939 | -9/Materials | Identified Splice Drone Bay 2931 | -9/Materials | Entered Mines 2978 | -9/Mines | Met a Derelict shopkeep closing up shop 2979 | -9/Mines | Learned 4 Materials zone layouts 3097 | -9/Mines | Assembled infested the area 3375 | -9/Mines | Discovered new exit (range 5) 3407 | -9/Mines | Identified exit to Exiles 3409 | -9/Mines | Entered Exiles 3460 | -9/Exiles | Discovered new exit (range 17) 3488 | -9/Exiles | Identified exit to Mines 3545 | -9/Exiles | Met 8R-AWN 3587 | -9/Exiles | Met EX-HEX 3707 | -9/Exiles | Met EX-DEC 3786 | -9/Exiles | Visited The Gauntlet 4227 | -9/Exiles | Discovered exit to Mines (range 17) 4409 | -9/Exiles | Met EX-BIN 4643 | -9/Exiles | Aligned with FarCom system 4645 | -9/Exiles | Given EX-Vault access code 4705 | -9/Exiles | Opened EX-Vault 4728 | -9/Exiles | Found Gui. Plasma Cannon 4736 | -9/Exiles | Found Supersonic Drone Bay 4741 | -9/Exiles | Attacked by the Exiles 4773 | -9/Exiles | Core integrity fell below 50% 4793 | -9/Exiles | Core integrity fell below 20% 4804 | -9/Exiles | Destroyed by as-01191 with Assembled Rifle Last Messages --------------- HV Slug penetrates Wall. Penetrated by HV Slug. HV Slug penetrates Wall. Arm. Wheel+ destroyed. HV Slug penetrates Wall. Penetrated by HV Slug. HV Slug penetrates Wall. Penetrated by HV Slug. HV Slug penetrates Machine. Machine disabled. HV Slug penetrates Wall. System corrupted: Substantial component data lost. HV Slug penetrates Machine. HV Slug penetrates Wall. Shotgun destroyed. Penetrated by HV Slug. HV Slug penetrates Wall. HV Slug penetrates Machine. HV Slug penetrates Wall. Map ----- +----------------------------------------------------+ | ???????????????????????#X #??????????????????? | | ???????????????????????## #??????????????????? | | ????????????????????????# #??????????????????? | | ????????????????????????# #########??????????? | | ????????????????????????# ##""""""#??????????? | | ????????????????????????# ## """#??????????? | | ????????????????????????# X""#??????????? | | ????????????????????????# ## """#??????????? | | ????????????????######### ##""""""#??????????? | | ????????????????#""""""## #########??????????? | | ????????????????#"""" ## #??????????????????? | | ????????????????#""X" %% #??????????????????? | | ????????????????#" #??????????????????? | | ????????????????#" ## #??????????????????? | | ????????????????#""""""## #?#########????????? | | ????????????????##"###### #?#"""""""#????????? | | ???????????????? "#???#; #?#"""""""#????????? | | ??????????????#""" #????# #?#"""""""#????????? | | ??????????????#""" #???## ###"" """"#????????? | | ???????????????""" #???# """"#????????? | | ????????????????####?### a """#????????? | | ?????????????????????# # ga """#????????? | | ??????????????????????#; a """#????????? | | ????????########???????#" """#????????? | | ????????# """#???????#" """## ??????? | | ????????#"" """#???????##@ """"""??????? | | ????????#"" #????????# """###??????? | | ????????#"" #????????#" "X" """"" ??????? | | ????????#"" "#????????#" """ # "??????? | | ????????# ""#????????#" """""""""#????????? | | ????????#"" ""#???????##" ###########????????? | | ????????### ###??????##"" #??????????????????? | | #####???### ###?######"" #??????????????????? | | """#####X# #"###""""""" ##?????????????????? | | """""" " "" ##???##########???? | | "" """ " #####"""""""""##?? | | " " " """ """"##? | | "" " #? | | " """#? | | # " "#? | | ## " "## | | ?##" ""# | | ??#""" """""" "" | | ?##" ######""" | | ?#"" ""##????#####""" | | ##""" """##?????????##""" | | #""" """##???????????#"""" | | #""" ""#???????????##"" | | #"" ########??####"""" | | #""" ## ####""" | +----------------------------------------------------+ Best States ------------- Heat Dissipation 50 Energy Generation 18 Energy Capacity 280 Matter Stores 300 Matter Capacity 300 Sight Range 18 Robot Scan Range 14 Terrain Scan Density 10 Armor Coverage 150 Propulsion Shielding 33 Evasion (%) 55 Item Schematics ----------------- None Robot Schematics ------------------ None Fabricated ------------ Nothing Repaired ---------- Nothing Studied --------- Wheel | -9/Materials | Hacked Arm. Wheel | -9/Materials | Hacked Alien Tech Used ----------------- None Achievements -------------- Ghost 'Em Sixth Sense That Tickles Challenges ------------ None Game ------ Seed ArcFortressTearclaws Manual? 0 Play Time 01:25:26 Cumulative 13.6 hours Start 2025.11.21 @ 05:45:13 End 2025.11.21 @ 07:22:40 Sessions 1 Manual Loads 0 Difficulty Rogue Special Mode None Game No. 7 Rogue 7 Adventurer 0 Explorer 0 Win Type - Total 0 Types 0/0/0/0/0/0/0/0/0/0 Lore% 8 Gallery% 13 Achievement% 15 Wizard Run 0 Options --------- Layout 1 ASCII 0 Keyboard 0 Movement Mouse Keybinds 0 Fullscreen 1 Font 32/SmallcapsGlow Map View 50x35 Zoom Use 0% Tactical HUD 0 Map Filters NONE Filters NONE Steam 1 RUN: a082f025-ada3-48c1-81fc-7b510748f477